[Event "Titled Tuesday Blitz May 30 Early 2023"]
[White "Dehtiarov, Roman"]
[Black "Ziatdinov, Raset"]
[WhiteFideId "14186640"]
[BlackFideId "2015323"]
[WhiteElo "2189"]
[BlackElo "2220"]
[Result "1-0"]
[Round "03"]
[TimeControl "180+2"]
[Date "2023.05.30"]
[WhiteClock "0:00:04"]
[BlackClock "0:00:00"]

1. c4 {[%clk 0:03:00]}  Nf6 {[%clk 0:02:57]} 2. Nc3 {[%clk 0:03:00]}  g6 {[%clk 0:02:57]} 3. g3 {[%clk 0:03:00]}  Bg7 {[%clk 0:02:57]} 4. Bg2 {[%clk 0:03:00]}  O-O {[%clk 0:02:58]} 5. d3 {[%clk 0:03:01]}  d6 {[%clk 0:02:59]} 6. e4 {[%clk 0:03:01]}  Nc6 {[%clk 0:02:59]} 7. Nge2 {[%clk 0:03:01]}  e5 {[%clk 0:03:00]} 8. O-O {[%clk 0:03:02]}  Nh5 {[%clk 0:02:59]} 9. Be3 {[%clk 0:02:55]}  a6 {[%clk 0:02:54]} 10. h3 {[%clk 0:02:53]}  f5 {[%clk 0:02:42]} 11. exf5 {[%clk 0:02:51]}  gxf5 {[%clk 0:02:43]} 12. f4 {[%clk 0:02:51]}  Be6 {[%clk 0:02:30]} 13. Kh2 {[%clk 0:02:50]}  Qd7 {[%clk 0:02:19]} 14. b3 {[%clk 0:02:47]}  exf4 {[%clk 0:02:09]} 15. Bxf4 {[%clk 0:02:40]}  Nxf4 {[%clk 0:02:08]} 16. Nxf4 {[%clk 0:02:29]}  Bf7 {[%clk 0:01:52]} 17. Ncd5 {[%clk 0:02:17]}  Rae8 {[%clk 0:01:44]} 18. Rc1 {[%clk 0:01:59]}  Nd4 {[%clk 0:01:34]} 19. Qd2 {[%clk 0:01:50]}  c6 {[%clk 0:01:31]} 20. Ne3 {[%clk 0:01:42]}  Re7 {[%clk 0:01:06]} 21. Nc2 {[%clk 0:01:07]}  Rfe8 {[%clk 0:00:59]} 22. Rf2 {[%clk 0:00:10]}  Qc7 {[%clk 0:00:20]} 23. Rcf1 {[%clk 0:00:07]}  Nxc2 {[%clk 0:00:16]} 24. Qxc2 {[%clk 0:00:08]}  Re5 {[%clk 0:00:16]} 25. d4 {[%clk 0:00:07]}  Re3 {[%clk 0:00:15]} 26. Qxf5 {[%clk 0:00:07]}  d5 {[%clk 0:00:12]} 27. cxd5 {[%clk 0:00:06]}  cxd5 {[%clk 0:00:13]} 28. Nxd5 {[%clk 0:00:07]}  Qxg3+ {[%clk 0:00:12]} 29. Kh1 {[%clk 0:00:06]}  Bxd5 {[%clk 0:00:11]} 30. Qxd5+ {[%clk 0:00:07]}  Kh8 {[%clk 0:00:12]} 31. Qf7 {[%clk 0:00:06]}  Re1 {[%clk 0:00:10]} 32. d5 {[%clk 0:00:05]}  Rf8 {[%clk 0:00:08]} 33. Qxf8+ {[%clk 0:00:04]}  Bxf8 {[%clk 0:00:09]} 34. Rxf8+ {[%clk 0:00:05]}  Kg7 {[%clk 0:00:10]} 35. Rf3 {[%clk 0:00:04]}  Rxf1+ {[%clk 0:00:10]} 36. Rxf1 {[%clk 0:00:05]}  Qd6 {[%clk 0:00:10]} 37. Re1 {[%clk 0:00:05]}  Qg3 {[%clk 0:00:08]} 38. Rd1 {[%clk 0:00:05]}  Kf8 {[%clk 0:00:08]} 39. d6 {[%clk 0:00:05]}  Ke8 {[%clk 0:00:08]} 40. d7+ {[%clk 0:00:04]}  Kd8 {[%clk 0:00:09]} 41. Rd5 {[%clk 0:00:04]}  Qe1+ {[%clk 0:00:08]} 42. Kh2 {[%clk 0:00:05]}  Qh4 {[%clk 0:00:07]} 43. Bf3 {[%clk 0:00:04]}  Qf4+ {[%clk 0:00:07]} 44. Kg2 {[%clk 0:00:04]}  Qc1 {[%clk 0:00:05]} 45. Kg3 {[%clk 0:00:04]}  Qg5+ {[%clk 0:00:00]} 46. Rxg5 {[%clk 0:00:04]} 1-0


[Site "https://www.chess.com"]

[Event "Titled Tuesday Blitz May 30 Early 2023"]
[White "Muthaiah AL"]
[Black "Martinez, Shawn"]
[WhiteFideId "5092442"]
[BlackFideId "2039770"]
[WhiteElo "2353"]
[BlackElo "2174"]
[Result "0-1"]
[Round "03"]
[TimeControl "180+2"]
[Date "2023.05.30"]
[WhiteClock "0:00:00"]
[BlackClock "0:00:14"]

1. e4 {[%clk 0:01:36]}  c5 {[%clk 0:02:56]} 2. Nf3 {[%clk 0:01:36]}  e6 {[%clk 0:02:56]} 3. c3 {[%clk 0:01:34]}  Nf6 {[%clk 0:02:52]} 4. Bd3 {[%clk 0:01:30]}  b6 {[%clk 0:02:46]} 5. O-O {[%clk 0:01:28]}  Bb7 {[%clk 0:02:46]} 6. Re1 {[%clk 0:01:28]}  Be7 {[%clk 0:02:43]} 7. Bc2 {[%clk 0:01:28]}  d5 {[%clk 0:02:30]} 8. e5 {[%clk 0:01:27]}  Nfd7 {[%clk 0:02:29]} 9. d4 {[%clk 0:01:27]}  Nc6 {[%clk 0:02:30]} 10. a3 {[%clk 0:01:15]}  a5 {[%clk 0:02:26]} 11. Ba4 {[%clk 0:00:53]}  O-O {[%clk 0:02:16]} 12. Bf4 {[%clk 0:00:49]}  Re8 {[%clk 0:02:09]} 13. Nbd2 {[%clk 0:00:46]}  Nf8 {[%clk 0:02:09]} 14. Be3 {[%clk 0:00:40]}  Ng6 {[%clk 0:02:03]} 15. g3 {[%clk 0:00:34]}  f6 {[%clk 0:01:57]} 16. exf6 {[%clk 0:00:31]}  gxf6 {[%clk 0:01:51]} 17. c4 {[%clk 0:00:17]}  Kg7 {[%clk 0:01:31]} 18. cxd5 {[%clk 0:00:16]}  exd5 {[%clk 0:01:21]} 19. Rc1 {[%clk 0:00:14]}  c4 {[%clk 0:01:14]} 20. h4 {[%clk 0:00:14]}  Bd6 {[%clk 0:01:03]} 21. h5 {[%clk 0:00:14]}  Nge7 {[%clk 0:01:03]} 22. Nh4 {[%clk 0:00:14]}  Kh8 {[%clk 0:01:03]} 23. Bc2 {[%clk 0:00:13]}  Rg8 {[%clk 0:00:59]} 24. Qf3 {[%clk 0:00:13]}  Qf8 {[%clk 0:00:58]} 25. h6 {[%clk 0:00:12]}  Bc8 {[%clk 0:00:54]} 26. Kh2 {[%clk 0:00:10]}  Bg4 {[%clk 0:00:52]} 27. Qg2 {[%clk 0:00:09]}  Qf7 {[%clk 0:00:49]} 28. Ndf3 {[%clk 0:00:08]}  Qh5 {[%clk 0:00:49]} 29. Kg1 {[%clk 0:00:08]}  f5 {[%clk 0:00:40]} 30. Nh2 {[%clk 0:00:08]}  f4 {[%clk 0:00:40]} 31. Nxg4 {[%clk 0:00:07]}  Rxg4 {[%clk 0:00:39]} 32. Bd1 {[%clk 0:00:03]}  fxe3 {[%clk 0:00:32]} 33. Rxe3 {[%clk 0:00:03]}  Rag8 {[%clk 0:00:30]} 34. Bxg4 {[%clk 0:00:02]}  Rxg4 {[%clk 0:00:29]} 35. Rce1 {[%clk 0:00:03]}  Qxh6 {[%clk 0:00:28]} 36. Kf1 {[%clk 0:00:02]}  Nxd4 {[%clk 0:00:20]} 37. Qh3 {[%clk 0:00:02]}  Qg7 {[%clk 0:00:15]} 38. Nf3 {[%clk 0:00:00]}  Nc2 {[%clk 0:00:14]} 0-1


[Site "https://www.chess.com"]

[Event "Titled Tuesday Blitz May 30 Early 2023"]
[White "Jegorovas, Aleksandras"]
[Black "Mikhaylova, Irina"]
[WhiteFideId "12801950"]
[BlackFideId "4109040"]
[WhiteElo "2247"]
[BlackElo "1975"]
[Result "1-0"]
[Round "03"]
[TimeControl "180+2"]
[Date "2023.05.30"]
[WhiteClock "0:00:19"]
[BlackClock "0:00:06"]

1. Nf3 {[%clk 0:02:56]}  Nf6 {[%clk 0:02:59]} 2. c4 {[%clk 0:02:55]}  g6 {[%clk 0:03:00]} 3. d4 {[%clk 0:02:52]}  Bg7 {[%clk 0:02:59]} 4. Nc3 {[%clk 0:02:49]}  d5 {[%clk 0:03:00]} 5. cxd5 {[%clk 0:02:44]}  Nxd5 {[%clk 0:03:00]} 6. e4 {[%clk 0:02:44]}  Nxc3 {[%clk 0:03:00]} 7. bxc3 {[%clk 0:02:45]}  c5 {[%clk 0:03:00]} 8. h3 {[%clk 0:02:43]}  O-O {[%clk 0:02:59]} 9. Rb1 {[%clk 0:02:41]}  Nc6 {[%clk 0:02:51]} 10. Be3 {[%clk 0:02:39]}  cxd4 {[%clk 0:02:46]} 11. cxd4 {[%clk 0:02:39]}  Qa5+ {[%clk 0:02:46]} 12. Qd2 {[%clk 0:02:39]}  Qxd2+ {[%clk 0:02:44]} 13. Kxd2 {[%clk 0:02:39]}  Rd8 {[%clk 0:02:44]} 14. d5 {[%clk 0:02:36]}  e6 {[%clk 0:02:44]} 15. Bc4 {[%clk 0:02:34]}  exd5 {[%clk 0:02:44]} 16. Bxd5 {[%clk 0:02:33]}  Be6 {[%clk 0:02:44]} 17. Rxb7 {[%clk 0:02:31]}  Bxd5 {[%clk 0:02:44]} 18. exd5 {[%clk 0:02:32]}  Rxd5+ {[%clk 0:02:45]} 19. Ke2 {[%clk 0:02:32]}  Re8 {[%clk 0:02:10]} 20. Rc1 {[%clk 0:02:27]}  Nd4+ {[%clk 0:02:10]} 21. Nxd4 {[%clk 0:02:25]}  Bxd4 {[%clk 0:02:10]} 22. Rcc7 {[%clk 0:02:25]}  Bxe3 {[%clk 0:02:06]} 23. fxe3 {[%clk 0:02:24]}  Rf5 {[%clk 0:01:48]} 24. Rxa7 {[%clk 0:02:16]}  Ree5 {[%clk 0:01:45]} 25. a4 {[%clk 0:02:03]}  h5 {[%clk 0:01:35]} 26. g4 {[%clk 0:02:00]}  hxg4 {[%clk 0:01:32]} 27. hxg4 {[%clk 0:02:00]}  Rf6 {[%clk 0:01:33]} 28. a5 {[%clk 0:01:55]}  Ree6 {[%clk 0:01:21]} 29. a6 {[%clk 0:01:30]}  Rxa6 {[%clk 0:01:16]} 30. Rxf7 {[%clk 0:01:30]}  Rxa7 {[%clk 0:00:51]} 31. Rxf6 {[%clk 0:01:29]}  Kg7 {[%clk 0:00:51]} 32. Rb6 {[%clk 0:01:29]}  g5 {[%clk 0:00:31]} 33. Kf3 {[%clk 0:01:26]}  Rf7+ {[%clk 0:00:31]} 34. Ke4 {[%clk 0:01:23]}  Rf1 {[%clk 0:00:31]} 35. Ke5 {[%clk 0:01:15]}  Kf7 {[%clk 0:00:31]} 36. e4 {[%clk 0:01:09]}  Rf4 {[%clk 0:00:29]} 37. Rb7+ {[%clk 0:01:08]}  Kg6 {[%clk 0:00:26]} 38. Rb6+ {[%clk 0:01:00]}  Kf7 {[%clk 0:00:20]} 39. Kd5 {[%clk 0:00:49]}  Rxg4 {[%clk 0:00:20]} 40. e5 {[%clk 0:00:49]}  Rg1 {[%clk 0:00:20]} 41. Rb7+ {[%clk 0:00:49]}  Kg6 {[%clk 0:00:20]} 42. Rb6+ {[%clk 0:00:46]}  Kg7 {[%clk 0:00:19]} 43. Ke6 {[%clk 0:00:45]}  Rf1 {[%clk 0:00:18]} 44. Ke7 {[%clk 0:00:40]}  g4 {[%clk 0:00:18]} 45. Rb4 {[%clk 0:00:36]}  Rf7+ {[%clk 0:00:15]} 46. Ke6 {[%clk 0:00:35]}  Ra7 {[%clk 0:00:16]} 47. Rxg4+ {[%clk 0:00:34]}  Kf8 {[%clk 0:00:17]} 48. Kf6 {[%clk 0:00:26]}  Ra6+ {[%clk 0:00:14]} 49. e6 {[%clk 0:00:26]}  Rb6 {[%clk 0:00:14]} 50. Ra4 {[%clk 0:00:23]}  Kg8 {[%clk 0:00:14]} 51. Ra8+ {[%clk 0:00:22]}  Kh7 {[%clk 0:00:14]} 52. Kf7 {[%clk 0:00:22]}  Rb1 {[%clk 0:00:14]} 53. e7 {[%clk 0:00:22]}  Rf1+ {[%clk 0:00:14]} 54. Ke8 {[%clk 0:00:22]}  Kg7 {[%clk 0:00:12]} 55. Ra2 {[%clk 0:00:21]}  Rd1 {[%clk 0:00:10]} 56. Rg2+ {[%clk 0:00:21]}  Kf6 {[%clk 0:00:06]} 57. Kf8 {[%clk 0:00:19]} 1-0


[Site "https://www.chess.com"]

[Event "Titled Tuesday Blitz May 30 Early 2023"]
[White "crosky"]
[Black "Goffredo_Fofi"]
[WhiteElo "2296"]
[BlackElo "2502"]
[Result "0-1"]
[Round "03"]
[TimeControl "180+2"]
[Date "2023.05.30"]
[WhiteClock "0:00:26"]
[BlackClock "0:00:19"]

1. d4 {[%clk 0:03:00]}  g6 {[%clk 0:02:59]} 2. c4 {[%clk 0:03:00]}  Bg7 {[%clk 0:02:59]} 3. Nc3 {[%clk 0:03:01]}  d6 {[%clk 0:03:00]} 4. e4 {[%clk 0:03:01]}  c5 {[%clk 0:03:00]} 5. d5 {[%clk 0:02:57]}  Bxc3+ {[%clk 0:02:59]} 6. bxc3 {[%clk 0:02:58]}  e5 {[%clk 0:03:00]} 7. f4 {[%clk 0:02:46]}  Qe7 {[%clk 0:02:20]} 8. Bd3 {[%clk 0:02:29]}  Nf6 {[%clk 0:02:17]} 9. fxe5 {[%clk 0:02:26]}  Qxe5 {[%clk 0:02:18]} 10. Nf3 {[%clk 0:02:26]}  Qxc3+ {[%clk 0:02:05]} 11. Qd2 {[%clk 0:01:54]}  Qxa1 {[%clk 0:01:56]} 12. O-O {[%clk 0:01:54]}  Ng4 {[%clk 0:01:36]} 13. Bb2 {[%clk 0:01:47]}  Qxa2 {[%clk 0:01:13]} 14. Bxh8 {[%clk 0:01:46]}  Qxd2 {[%clk 0:01:14]} 15. Nxd2 {[%clk 0:01:47]}  Nd7 {[%clk 0:01:06]} 16. h3 {[%clk 0:01:31]}  Nge5 {[%clk 0:01:04]} 17. Be2 {[%clk 0:01:32]}  Ke7 {[%clk 0:00:53]} 18. Nf3 {[%clk 0:01:17]}  Nxf3+ {[%clk 0:00:51]} 19. gxf3 {[%clk 0:01:14]}  f6 {[%clk 0:00:38]} 20. f4 {[%clk 0:01:10]}  a5 {[%clk 0:00:35]} 21. Bg4 {[%clk 0:00:53]}  a4 {[%clk 0:00:35]} 22. Re1 {[%clk 0:00:44]}  a3 {[%clk 0:00:32]} 23. e5 {[%clk 0:00:44]}  fxe5 {[%clk 0:00:30]} 24. fxe5 {[%clk 0:00:41]}  Nxe5 {[%clk 0:00:20]} 25. Bxe5 {[%clk 0:00:39]}  dxe5 {[%clk 0:00:17]} 26. Rxe5+ {[%clk 0:00:40]}  Kd8 {[%clk 0:00:17]} 27. Bxc8 {[%clk 0:00:34]}  Rxc8 {[%clk 0:00:18]} 28. Re2 {[%clk 0:00:27]}  Ra8 {[%clk 0:00:18]} 29. Ra2 {[%clk 0:00:28]}  Kd7 {[%clk 0:00:18]} 30. Kf2 {[%clk 0:00:29]}  Kd6 {[%clk 0:00:18]} 31. Ke3 {[%clk 0:00:29]}  b5 {[%clk 0:00:18]} 32. cxb5 {[%clk 0:00:30]}  Kxd5 {[%clk 0:00:19]} 33. Kd3 {[%clk 0:00:28]}  c4+ {[%clk 0:00:19]} 34. Kc3 {[%clk 0:00:26]}  Kc5 {[%clk 0:00:19]} 35. Rxa3 {[%clk 0:00:26]}  Rxa3+ {[%clk 0:00:19]} 0-1


[Site "https://www.chess.com"]

[Event "Titled Tuesday Blitz May 30 Early 2023"]
[White "Garakov, Mikhael"]
[Black "Jiganchine, Roman"]
[WhiteFideId "4169034"]
[BlackFideId "2603667"]
[WhiteElo "2347"]
[BlackElo "2295"]
[Result "1-0"]
[Round "03"]
[TimeControl "180+2"]
[Date "2023.05.30"]
[WhiteClock "0:00:48"]
[BlackClock "0:00:02"]

1. e4 {[%clk 0:03:00]}  c6 {[%clk 0:02:59]} 2. d4 {[%clk 0:03:00]}  d5 {[%clk 0:03:00]} 3. exd5 {[%clk 0:02:55]}  cxd5 {[%clk 0:03:00]} 4. c4 {[%clk 0:02:56]}  Nf6 {[%clk 0:02:59]} 5. Nc3 {[%clk 0:02:56]}  Nc6 {[%clk 0:02:59]} 6. Nf3 {[%clk 0:02:56]}  Bg4 {[%clk 0:02:59]} 7. cxd5 {[%clk 0:02:55]}  Nxd5 {[%clk 0:02:59]} 8. Qb3 {[%clk 0:02:55]}  Bxf3 {[%clk 0:02:59]} 9. gxf3 {[%clk 0:02:55]}  e6 {[%clk 0:03:00]} 10. Qxb7 {[%clk 0:02:56]}  Nxd4 {[%clk 0:02:59]} 11. Bb5+ {[%clk 0:02:56]}  Nxb5 {[%clk 0:02:59]} 12. Qc6+ {[%clk 0:02:56]}  Ke7 {[%clk 0:02:58]} 13. Qxb5 {[%clk 0:02:57]}  Qd7 {[%clk 0:02:57]} 14. Nxd5+ {[%clk 0:02:56]}  Qxd5 {[%clk 0:02:54]} 15. Qxd5 {[%clk 0:02:56]}  exd5 {[%clk 0:02:53]} 16. Bd2 {[%clk 0:02:57]}  Ke6 {[%clk 0:02:44]} 17. O-O-O {[%clk 0:02:54]}  Bc5 {[%clk 0:02:36]} 18. Rhe1+ {[%clk 0:02:31]}  Kd6 {[%clk 0:02:01]} 19. Re2 {[%clk 0:02:31]}  Rhe8 {[%clk 0:01:45]} 20. Bf4+ {[%clk 0:02:30]}  Kc6 {[%clk 0:01:43]} 21. Rc2 {[%clk 0:02:31]}  Kb6 {[%clk 0:01:29]} 22. Rxd5 {[%clk 0:02:30]}  Rac8 {[%clk 0:01:16]} 23. Rdxc5 {[%clk 0:02:23]}  Rxc5 {[%clk 0:01:14]} 24. Be3 {[%clk 0:02:24]}  Rxe3 {[%clk 0:01:06]} 25. fxe3 {[%clk 0:02:25]}  Rg5 {[%clk 0:00:51]} 26. Kd2 {[%clk 0:02:20]}  g6 {[%clk 0:00:38]} 27. f4 {[%clk 0:02:14]}  Rg1 {[%clk 0:00:36]} 28. Kd3 {[%clk 0:02:08]}  f5 {[%clk 0:00:36]} 29. b4 {[%clk 0:01:24]}  Rd1+ {[%clk 0:00:33]} 30. Kc4 {[%clk 0:01:23]}  Re1 {[%clk 0:00:31]} 31. Kd4 {[%clk 0:01:23]}  Rb1 {[%clk 0:00:26]} 32. a3 {[%clk 0:01:21]}  Rb3 {[%clk 0:00:26]} 33. Rc3 {[%clk 0:01:21]}  Rb2 {[%clk 0:00:25]} 34. h3 {[%clk 0:01:22]}  Rh2 {[%clk 0:00:25]} 35. e4 {[%clk 0:01:21]}  Rd2+ {[%clk 0:00:16]} 36. Rd3 {[%clk 0:01:18]}  Rf2 {[%clk 0:00:12]} 37. e5 {[%clk 0:00:51]}  Rxf4+ {[%clk 0:00:12]} 38. Kd5 {[%clk 0:00:51]}  Re4 {[%clk 0:00:11]} 39. Kd6 {[%clk 0:00:49]}  f4 {[%clk 0:00:10]} 40. e6 {[%clk 0:00:48]}  Re3 {[%clk 0:00:02]} 41. Rxe3 {[%clk 0:00:48]} 1-0


[Site "https://www.chess.com"]

[Event "Titled Tuesday Blitz May 30 Early 2023"]
[White "cristianserban1"]
[Black "Mirzanurov, Bulat"]
[BlackFideId "4184521"]
[WhiteElo "2497"]
[BlackElo "2005"]
[Result "1-0"]
[Round "03"]
[TimeControl "180+2"]
[Date "2023.05.30"]
[WhiteClock "0:01:02"]
[BlackClock "0:00:00"]

1. d4 {[%clk 0:02:57]}  d5 {[%clk 0:02:58]} 2. Bf4 {[%clk 0:02:57]}  Nf6 {[%clk 0:02:57]} 3. Nf3 {[%clk 0:02:56]}  g6 {[%clk 0:02:57]} 4. e3 {[%clk 0:02:53]}  Bg7 {[%clk 0:02:57]} 5. Nc3 {[%clk 0:02:53]}  O-O {[%clk 0:02:44]} 6. Nb5 {[%clk 0:02:52]}  Na6 {[%clk 0:02:39]} 7. h3 {[%clk 0:02:53]}  c6 {[%clk 0:02:38]} 8. Nc3 {[%clk 0:02:53]}  Nc7 {[%clk 0:02:32]} 9. Be2 {[%clk 0:02:53]}  Re8 {[%clk 0:02:21]} 10. O-O {[%clk 0:02:52]}  Bf5 {[%clk 0:02:19]} 11. a4 {[%clk 0:02:50]}  a5 {[%clk 0:02:08]} 12. g4 {[%clk 0:02:49]}  Bd7 {[%clk 0:02:00]} 13. Ne5 {[%clk 0:02:42]}  Na6 {[%clk 0:01:37]} 14. g5 {[%clk 0:02:41]}  Ne4 {[%clk 0:01:32]} 15. Nxe4 {[%clk 0:02:40]}  dxe4 {[%clk 0:01:33]} 16. h4 {[%clk 0:02:31]}  Nb4 {[%clk 0:01:23]} 17. c3 {[%clk 0:01:58]}  Nd5 {[%clk 0:01:21]} 18. Qb3 {[%clk 0:01:58]}  Qc8 {[%clk 0:00:24]} 19. Kh2 {[%clk 0:01:46]}  Be6 {[%clk 0:00:23]} 20. Bc4 {[%clk 0:01:46]}  Nxf4 {[%clk 0:00:21]} 21. exf4 {[%clk 0:01:44]}  Bxc4 {[%clk 0:00:20]} 22. Qxc4 {[%clk 0:01:45]}  Qf5 {[%clk 0:00:15]} 23. Kg3 {[%clk 0:01:38]}  h6 {[%clk 0:00:13]} 24. Qe2 {[%clk 0:01:25]}  h5 {[%clk 0:00:12]} 25. Rae1 {[%clk 0:01:21]}  f6 {[%clk 0:00:07]} 26. Nc4 {[%clk 0:01:14]}  fxg5 {[%clk 0:00:05]} 27. fxg5 {[%clk 0:01:15]}  Qf3+ {[%clk 0:00:03]} 28. Qxf3 {[%clk 0:01:15]}  exf3 {[%clk 0:00:03]} 29. Re6 {[%clk 0:01:13]}  Rf8 {[%clk 0:00:04]} 30. Rxe7 {[%clk 0:01:11]}  Rf7 {[%clk 0:00:03]} 31. Rfe1 {[%clk 0:01:11]}  Rxe7 {[%clk 0:00:03]} 32. Rxe7 {[%clk 0:01:11]}  Rf8 {[%clk 0:00:03]} 33. Rxb7 {[%clk 0:01:08]}  Ra8 {[%clk 0:00:02]} 34. Rc7 {[%clk 0:01:04]}  Bf8 {[%clk 0:00:02]} 35. Rxc6 {[%clk 0:01:03]}  Rb8 {[%clk 0:00:02]} 36. Rxg6+ {[%clk 0:01:02]}  Kf7 {[%clk 0:00:02]} 37. Rf6+ {[%clk 0:01:02]}  Ke7 {[%clk 0:00:03]} 38. Rb6 {[%clk 0:01:01]}  Rxb6 {[%clk 0:00:00]} 39. Nxb6 {[%clk 0:01:02]} 1-0


[Site "https://www.chess.com"]

[Event "Titled Tuesday Blitz May 30 Early 2023"]
[White "Ismayil, Malak"]
[Black "Rosenberg, Evan S"]
[WhiteFideId "13412604"]
[BlackFideId "2019299"]
[WhiteElo "1868"]
[BlackElo "2283"]
[Result "1/2-1/2"]
[Round "03"]
[TimeControl "180+2"]
[Date "2023.05.30"]
[WhiteClock "0:01:07"]
[BlackClock "0:01:42"]

1. e4 {[%clk 0:03:00]}  c5 {[%clk 0:02:57]} 2. Nf3 {[%clk 0:03:00]}  g6 {[%clk 0:02:58]} 3. d4 {[%clk 0:02:58]}  cxd4 {[%clk 0:02:58]} 4. Nxd4 {[%clk 0:02:59]}  Nf6 {[%clk 0:02:58]} 5. Nc3 {[%clk 0:02:59]}  Nc6 {[%clk 0:02:58]} 6. Nxc6 {[%clk 0:02:59]}  dxc6 {[%clk 0:02:58]} 7. Bc4 {[%clk 0:03:00]}  Qxd1+ {[%clk 0:02:57]} 8. Kxd1 {[%clk 0:03:01]}  e5 {[%clk 0:02:55]} 9. f3 {[%clk 0:03:00]}  Bc5 {[%clk 0:02:53]} 10. Ke2 {[%clk 0:03:00]}  h6 {[%clk 0:02:52]} 11. a3 {[%clk 0:02:58]}  a5 {[%clk 0:02:51]} 12. Be3 {[%clk 0:02:52]}  Bxe3 {[%clk 0:02:49]} 13. Kxe3 {[%clk 0:02:53]}  Ke7 {[%clk 0:02:49]} 14. Rad1 {[%clk 0:02:51]}  b5 {[%clk 0:02:48]} 15. Bb3 {[%clk 0:02:49]}  Be6 {[%clk 0:02:48]} 16. Bxe6 {[%clk 0:02:44]}  Kxe6 {[%clk 0:02:49]} 17. Rd2 {[%clk 0:02:44]}  Rhd8 {[%clk 0:02:49]} 18. Rhd1 {[%clk 0:02:43]}  Rxd2 {[%clk 0:02:47]} 19. Rxd2 {[%clk 0:02:44]}  Ne8 {[%clk 0:02:47]} 20. b3 {[%clk 0:02:42]}  Nd6 {[%clk 0:02:46]} 21. g3 {[%clk 0:02:40]}  f5 {[%clk 0:02:46]} 22. f4 {[%clk 0:02:38]}  exf4+ {[%clk 0:02:35]} 23. gxf4 {[%clk 0:02:37]}  fxe4 {[%clk 0:02:33]} 24. Nxe4 {[%clk 0:02:36]}  Nxe4 {[%clk 0:02:33]} 25. Kxe4 {[%clk 0:02:37]}  Rf8 {[%clk 0:02:29]} 26. Rg2 {[%clk 0:02:31]}  Kf6 {[%clk 0:02:29]} 27. Kd4 {[%clk 0:02:30]}  Kf5 {[%clk 0:02:25]} 28. Kc5 {[%clk 0:02:30]}  Rf6 {[%clk 0:02:25]} 29. Rf2 {[%clk 0:02:14]}  Ke4 {[%clk 0:02:25]} 30. c4 {[%clk 0:02:08]}  bxc4 {[%clk 0:02:24]} 31. bxc4 {[%clk 0:02:09]}  g5 {[%clk 0:02:24]} 32. f5 {[%clk 0:02:05]}  h5 {[%clk 0:02:21]} 33. Re2+ {[%clk 0:01:59]}  Kxf5 {[%clk 0:02:20]} 34. Rf2+ {[%clk 0:01:47]}  Kg6 {[%clk 0:02:19]} 35. Rxf6+ {[%clk 0:01:24]}  Kxf6 {[%clk 0:02:19]} 36. Kxc6 {[%clk 0:01:25]}  g4 {[%clk 0:02:20]} 37. Kd6 {[%clk 0:01:24]}  h4 {[%clk 0:02:20]} 38. c5 {[%clk 0:01:25]}  g3 {[%clk 0:02:20]} 39. hxg3 {[%clk 0:01:18]}  hxg3 {[%clk 0:02:21]} 40. c6 {[%clk 0:01:18]}  g2 {[%clk 0:02:22]} 41. c7 {[%clk 0:01:19]}  g1=Q {[%clk 0:02:22]} 42. c8=Q {[%clk 0:01:19]}  Qd4+ {[%clk 0:02:18]} 43. Kc7 {[%clk 0:01:16]}  Qc5+ {[%clk 0:02:14]} 44. Kb7 {[%clk 0:01:16]}  Qxa3 {[%clk 0:02:10]} 45. Qc6+ {[%clk 0:01:14]}  Ke5 {[%clk 0:02:10]} 46. Kb6 {[%clk 0:01:12]}  a4 {[%clk 0:01:42]} 47. Ka5 {[%clk 0:01:07]} 1/2-1/2


[Site "https://www.chess.com"]

[Event "Titled Tuesday Blitz May 30 Early 2023"]
[White "Cupid, Kevin"]
[Black "Sukandar, Irine Kharisma"]
[WhiteFideId "7700512"]
[BlackFideId "7101937"]
[WhiteElo "2124"]
[BlackElo "2315"]
[Result "1-0"]
[Round "03"]
[TimeControl "180+2"]
[Date "2023.05.30"]
[WhiteClock "0:00:34"]
[BlackClock "0:00:00"]

1. d4 {[%clk 0:03:00]}  Nf6 {[%clk 0:02:59]} 2. Nf3 {[%clk 0:02:59]}  d5 {[%clk 0:02:55]} 3. c4 {[%clk 0:03:00]}  c6 {[%clk 0:02:55]} 4. Nc3 {[%clk 0:03:00]}  e6 {[%clk 0:02:45]} 5. cxd5 {[%clk 0:02:58]}  exd5 {[%clk 0:02:44]} 6. Bg5 {[%clk 0:02:58]}  h6 {[%clk 0:02:40]} 7. Bh4 {[%clk 0:02:57]}  Be6 {[%clk 0:02:38]} 8. e3 {[%clk 0:02:57]}  Nbd7 {[%clk 0:02:35]} 9. Bd3 {[%clk 0:02:57]}  g5 {[%clk 0:02:32]} 10. Bg3 {[%clk 0:02:57]}  Bg7 {[%clk 0:02:32]} 11. Ne5 {[%clk 0:02:52]}  Qe7 {[%clk 0:02:26]} 12. h4 {[%clk 0:02:47]}  g4 {[%clk 0:02:21]} 13. h5 {[%clk 0:02:45]}  Qb4 {[%clk 0:01:42]} 14. Qc2 {[%clk 0:02:21]}  c5 {[%clk 0:01:35]} 15. dxc5 {[%clk 0:02:15]}  Nxc5 {[%clk 0:01:34]} 16. Bb5+ {[%clk 0:02:12]}  Ncd7 {[%clk 0:01:22]} 17. a3 {[%clk 0:01:59]}  Qc5 {[%clk 0:01:07]} 18. Qa4 {[%clk 0:01:45]}  Rd8 {[%clk 0:00:45]} 19. Rc1 {[%clk 0:01:40]}  O-O {[%clk 0:00:40]} 20. b4 {[%clk 0:01:35]}  Qb6 {[%clk 0:00:31]} 21. Nxd7 {[%clk 0:01:14]}  Nxd7 {[%clk 0:00:28]} 22. O-O {[%clk 0:01:06]}  a6 {[%clk 0:00:28]} 23. Bxd7 {[%clk 0:00:51]}  Rxd7 {[%clk 0:00:28]} 24. Ne2 {[%clk 0:00:49]}  d4 {[%clk 0:00:25]} 25. Nxd4 {[%clk 0:00:49]}  Bxd4 {[%clk 0:00:25]} 26. exd4 {[%clk 0:00:50]}  Qxd4 {[%clk 0:00:23]} 27. Rc5 {[%clk 0:00:50]}  Rfd8 {[%clk 0:00:19]} 28. Bc7 {[%clk 0:00:40]}  Rc8 {[%clk 0:00:19]} 29. Be5 {[%clk 0:00:39]}  Rxc5 {[%clk 0:00:08]} 30. Bxd4 {[%clk 0:00:35]}  Rxd4 {[%clk 0:00:08]} 31. Qe8+ {[%clk 0:00:34]}  Kg7 {[%clk 0:00:07]} 32. bxc5 {[%clk 0:00:35]}  Rc4 {[%clk 0:00:05]} 33. Qe7 {[%clk 0:00:34]}  Rc3 {[%clk 0:00:00]} 34. Re1 {[%clk 0:00:34]} 1-0


[Site "https://www.chess.com"]

[Event "Titled Tuesday Blitz May 30 Early 2023"]
[White "Kokoszczynski, Jan"]
[Black "Benaddi, Mouhcine"]
[WhiteFideId "1174460"]
[BlackFideId "9001050"]
[WhiteElo "2139"]
[BlackElo "2036"]
[Result "1-0"]
[Round "03"]
[TimeControl "180+2"]
[Date "2023.05.30"]
[WhiteClock "0:02:16"]
[BlackClock "0:02:18"]

1. c4 {[%clk 0:02:55]}  Nf6 {[%clk 0:02:59]} 2. Nc3 {[%clk 0:02:56]}  g6 {[%clk 0:03:00]} 3. d4 {[%clk 0:02:55]}  c5 {[%clk 0:02:57]} 4. d5 {[%clk 0:02:54]}  e6 {[%clk 0:02:58]} 5. e4 {[%clk 0:02:54]}  exd5 {[%clk 0:02:58]} 6. exd5 {[%clk 0:02:54]}  Bd6 {[%clk 0:02:57]} 7. Be2 {[%clk 0:02:31]}  O-O {[%clk 0:02:54]} 8. h4 {[%clk 0:02:23]}  Re8 {[%clk 0:02:47]} 9. Kf1 {[%clk 0:02:23]}  h5 {[%clk 0:02:28]} 10. Bg5 {[%clk 0:02:22]}  Be7 {[%clk 0:02:25]} 11. d6 {[%clk 0:02:17]}  Bf8 {[%clk 0:02:23]} 12. Nd5 {[%clk 0:02:17]}  Bg7 {[%clk 0:02:18]} 13. Nc7 {[%clk 0:02:16]} 1-0


[Site "https://www.chess.com"]